bitfinex/quotes_BTCUSD_20241216
["timestamp","ask_amount","ask_price","bid_price","bid_amount"]
[1734314586020,0.0001728,105360.0,105350.0,0.73634446]
[1734314586630,0.0752,105370.0,105350.0,5.64025657]
[1734314586819,0.1694907,105370.0,105360.0,0.59030052]
[1734314586982,0.1694907,105370.0,105360.0,0.71794506]
[1734314587182,0.27928446,105440.0,105420.0,0.151773]
[1734314587441,0.0001728,105470.0,105450.0,0.15173]
[1734314587783,0.0001728,105470.0,105460.0,0.151716]
[1734314587952,0.0001728,105470.0,105460.0,0.29822146]
[1734314588130,0.0001728,105470.0,105460.0,0.27153325]
[1734314588372,0.00073671,105470.0,105460.0,0.48328961]
[1734314588599,0.00073671,105470.0,105460.0,0.27153325]
[1734314588798,0.00073671,105470.0,105460.0,0.11981725]
[1734314589000,0.00073671,105470.0,105460.0,0.01866237]
[1734314589207,0.19498821,105470.0,105440.0,0.16932173]
[1734314589413,0.0766,105450.0,105440.0,0.08461919]
[1734314589865,0.1708907,105450.0,105440.0,0.08461919]
[1734314590071,0.1708907,105450.0,105430.0,0.46226958]
[1734314590412,0.1708907,105450.0,105430.0,0.32461132]
[1734314590681,0.1708907,105450.0,105430.0,0.151748]
[1734314590682,0.17046188,105450.0,105430.0,0.151748]
[1734314590883,0.1408907,105440.0,105420.0,0.151769]
[1734314591202,0.1408907,105440.0,105420.0,0.0194229]
[1734314591631,0.5202537,105440.0,105410.0,0.151776]
[1734314591831,0.18971,105430.0,105400.0,0.23649554]
[1734314592031,0.0942907,105420.0,105390.0,0.23650954]
[1734314592231,0.0466,105410.0,105380.0,0.68816477]
[1734314592435,0.0942907,105400.0,105380.0,0.40928895]
[1734314592608,0.2840487,105400.0,105370.0,0.09949755]
[1734314592822,0.2840447,105400.0,105380.0,0.01928942]
[1734314593029,0.2840447,105400.0,105360.0,0.39532612]
[1734314593250,0.61815692,105400.0,105360.0,0.31062358]
[1734314593459,0.56815692,105400.0,105360.0,0.31062358]
[1734314593676,0.0817,105390.0,105360.0,0.31062358]
[1734314593888,0.1759907,105390.0,105360.0,0.31062358]
[1734314594185,0.1759907,105390.0,105360.0,0.46248258]
[1734314595909,0.3657627,105390.0,105360.0,0.31062358]
[1734314596344,0.1759907,105390.0,105360.0,0.31062358]
[1734314596757,0.1759907,105390.0,105360.0,0.46248358]
[1734314597286,0.0942907,105380.0,105360.0,0.31062358]
[1734314597495,0.0452,105370.0,105360.0,0.01886296]
[1734314598098,0.0452,105370.0,105350.0,0.08469649]
[1734314598099,0.1394907,105370.0,105350.0,0.08469649]
[1734314598309,0.2841157,105360.0,105350.0,0.0001726]
[1734314598486,0.0942907,105360.0,105350.0,0.0001726]
[1734314599135,0.16518537,105360.0,105350.0,0.0001726]
[1734314599302,0.35501037,105360.0,105350.0,0.0001726]
[1734314599724,0.3592157,105360.0,105350.0,0.0001726]
[1734314599932,0.4591765,105360.0,105350.0,0.0001726]
[1734314600313,0.379703,105350.0,105330.0,0.01489827]
[1734314600528,0.2841517,105340.0,105330.0,8.64e-05]
[1734314600894,0.0942907,105340.0,105330.0,8.64e-05]
[1734314601017,0.901431,105360.0,105330.0,0.31075198]
[1734314601218,0.0942907,105350.0,105330.0,0.15790777]
[1734314601415,0.2841347,105350.0,105330.0,0.00601577]
[1734314602256,0.2841347,105350.0,105330.0,0.00601564]
[1734314602454,0.4739897,105350.0,105330.0,0.00601564]
[1734314603556,0.47349951,105350.0,105330.0,0.00601564]
[1734314605028,0.47349951,105350.0,105330.0,0.00601571]
[1734314605629,0.189861,105340.0,105330.0,0.0089804]
[1734314605841,0.4327125,105340.0,105330.0,8.64e-05]
[1734314606035,0.5152125,105340.0,105330.0,8.64e-05]
[1734314606746,1.0066125,105340.0,105330.0,8.64e-05]
[1734314608343,1.0566125,105340.0,105330.0,8.64e-05]
[1734314608532,1.05082696,105340.0,105330.0,8.64e-05]
[1734314609324,0.9566517,105340.0,105330.0,8.64e-05]
[1734314611119,0.4152517,105340.0,105330.0,8.64e-05]
[1734314611329,0.9566517,105340.0,105330.0,8.64e-05]
[1734314611965,0.4152517,105340.0,105330.0,8.64e-05]
[1734314612331,0.189907,105320.0,105300.0,8.64e-05]
[1734314612542,0.189907,105320.0,105300.0,0.00064898]
[1734314612543,0.0942907,105310.0,105300.0,0.00064898]
[1734314617174,0.510843,105340.0,105300.0,0.31617462]
[1734314617323,0.0942907,105330.0,105310.0,0.151931]
[1734314617521,0.0942907,105330.0,105310.0,0.16241213]
[1734314618326,0.0942907,105330.0,105310.0,0.31433613]
[1734314618690,0.0486,105340.0,105330.0,0.151903]
[1734314618847,0.0486,105340.0,105330.0,0.15862636]
[1734314618848,0.1428907,105340.0,105330.0,0.15862636]
[1734314619026,0.1428907,105340.0,105330.0,0.15941855]
[1734314620243,0.1428907,105340.0,105330.0,0.00751555]
[1734314621088,0.17616417,105340.0,105330.0,0.00593117]
[1734314621262,0.17616417,105340.0,105330.0,0.00889606]
[1734314621263,0.1428907,105340.0,105330.0,0.00889606]
[1734314621441,0.1428907,105340.0,105330.0,0.16079906]
[1734314621648,0.1428907,105340.0,105330.0,0.15783417]
[1734314624663,0.1428907,105340.0,105330.0,0.00593117]
[1734314625238,0.3827125,105340.0,105330.0,0.00593117]
[1734314625438,0.46395325,105340.0,105330.0,0.00889607]
[1734314625637,0.46395325,105340.0,105330.0,0.01838394]
[1734314626465,1.00535325,105340.0,105330.0,0.01838394]
[1734314626781,0.1428907,105340.0,105330.0,0.00593117]
[1734314627301,0.1428907,105340.0,105330.0,0.15783417]
[1734314627712,0.1428907,105340.0,105330.0,0.15800697]
[1734314627913,0.1429771,105340.0,105330.0,0.24290234]
[1734314629292,0.1429771,105340.0,105330.0,0.15800697]
[1734314630833,0.1429771,105340.0,105330.0,0.15800486]
[1734314631030,0.1429771,105340.0,105330.0,0.1520758]
[1734314631271,0.1429771,105340.0,105330.0,0.15800482]
[1734314631780,0.1429771,105340.0,105330.0,0.31712145]
[1734314631781,0.0943771,105340.0,105330.0,0.31712145]
[1734314631982,8.64e-05,105340.0,105330.0,0.31822209]
[1734314632155,8.63e-05,105360.0,105350.0,0.151874]
[1734314632410,0.1293,105380.0,105370.0,0.151845]
[1734314632584,0.2235907,105380.0,105370.0,0.15777402]
[1734314633643,0.22375959,105380.0,105370.0,0.15777402]
[1734314633833,0.22375959,105380.0,105370.0,0.15868384]
[1734314634172,0.22375959,105380.0,105370.0,0.15777402]
[1734314636095,0.22375959,105380.0,105370.0,0.00592902]
[1734314636884,0.31793485,105380.0,105370.0,0.00592743]
[1734314637524,0.22375959,105380.0,105370.0,0.15777243]
[1734314638910,0.22384599,105380.0,105370.0,0.15777243]
[1734314640138,0.22384599,105380.0,105370.0,0.15777226]
[1734314640561,0.22384599,105380.0,105370.0,0.15777225]
[1734314643155,0.22384599,105380.0,105370.0,0.00592725]
[1734314643781,0.22384599,105380.0,105370.0,0.15777225]
[1734314643979,0.14224599,105380.0,105370.0,0.31688888]
[1734314644227,0.00025529,105380.0,105370.0,0.34272957]
[1734314644400,0.00025529,105380.0,105370.0,0.42741879]
[1734314644623,0.00025529,105380.0,105370.0,0.8670366]
[1734314645586,0.00025529,105380.0,105370.0,1.03638892]
[1734314646526,0.00025529,105380.0,105370.0,1.16344889]
[1734314646708,0.00025529,105380.0,105370.0,1.03641505]
[1734314646913,0.00025529,105380.0,105370.0,1.16329424]
[1734314647165,0.00025529,105380.0,105370.0,1.03641505]
[1734314647515,0.00025529,105380.0,105370.0,1.16324515]
[1734314648085,0.00025529,105380.0,105370.0,1.16322921]
[1734314648212,0.00025529,105380.0,105370.0,1.16205198]
[1734314648633,0.00025529,105380.0,105370.0,1.03520826]
[1734314649457,0.00025529,105380.0,105370.0,1.04799248]
[1734314650075,0.00025529,105380.0,105370.0,0.97363164]
[1734314650496,0.00025529,105380.0,105370.0,0.80454939]
[1734314650957,0.00025529,105380.0,105370.0,0.77932854]
[1734314651518,0.00025529,105380.0,105370.0,0.46725289]
[1734314652375,0.00025529,105380.0,105370.0,0.4672529]
[1734314652582,0.00025529,105380.0,105370.0,0.46701662]
[1734314652786,0.1223,105420.0,105410.0,0.151788]
[1734314652985,0.1223,105420.0,105410.0,0.24289137]
[1734314652986,0.2165907,105420.0,105410.0,0.24289137]
[1734314654033,0.13965953,105420.0,105410.0,0.24289137]
[1734314654208,0.00016883,105420.0,105410.0,0.24289137]
[1734314656058,0.00016883,105420.0,105410.0,0.25568773]
[1734314656500,0.00016883,105420.0,105410.0,0.46273001]
[1734314657046,0.00016883,105420.0,105410.0,0.54696619]
[1734314657257,8.63e-05,105450.0,105440.0,0.151745]
[1734314657489,8.63e-05,105450.0,105440.0,0.27052683]
[1734314658045,8.63e-05,105450.0,105440.0,0.2705237]
[1734314660165,0.0812,105440.0,105410.0,0.37533064]
[1734314660402,0.270917,105420.0,105410.0,0.00016883]
[1734314660583,0.3652077,105420.0,105410.0,0.00016883]
[1734314660799,0.2738515,105420.0,105410.0,0.00016883]
[1734314661022,0.2738515,105420.0,105410.0,0.15195683]
[1734314661023,0.2238907,105420.0,105410.0,0.15195683]
[1734314661415,0.2238907,105420.0,105410.0,0.17112323]
[1734314661622,0.1296,105420.0,105410.0,0.25587902]
[1734314661819,0.1296,105420.0,105410.0,0.15195683]
[1734314662254,0.1296,105420.0,105410.0,0.15212943]
[1734314663662,0.0484,105420.0,105410.0,0.3110065]
[1734314664971,0.0484,105420.0,105410.0,0.15212943]
[1734314666406,0.05324,105420.0,105410.0,0.15212943]
[1734314666828,0.0484,105420.0,105410.0,0.15212943]
[1734314667034,0.0484,105420.0,105410.0,0.3110065]
[1734314667888,0.0832,105440.0,105410.0,0.3110065]
[1734314667889,0.1296,105440.0,105430.0,0.151759]
[1734314668094,0.2238907,105440.0,105430.0,0.151759]
[1734314668450,0.2238907,105440.0,105420.0,0.42074328]
[1734314668680,0.0942907,105430.0,105420.0,0.26897628]
[1734314672342,0.0942907,105430.0,105420.0,0.2749001]
[1734314674523,0.0942907,105430.0,105420.0,0.2750727]
[1734314674729,0.094377,105430.0,105420.0,0.2750727]
[1734314676151,0.094377,105430.0,105420.0,0.27482567]
[1734314676695,0.094377,105430.0,105420.0,0.26890185]
[1734314677018,0.094377,105430.0,105420.0,0.27482574]
[1734314677222,0.094377,105430.0,105420.0,0.28074955]
[1734314677470,0.1167747,105430.0,105420.0,0.12898255]
[1734314678629,0.4364737,105430.0,105420.0,0.0120203]
[1734314678816,0.4364737,105430.0,105420.0,0.13889841]
[1734314678817,0.2467747,105430.0,105420.0,0.13889841]
[1734314679215,0.2467747,105430.0,105420.0,0.00609641]
[1734314679531,0.4364737,105430.0,105420.0,0.00609641]
[1734314679937,0.4364737,105430.0,105420.0,0.0001726]
[1734314680165,0.4364737,105430.0,105420.0,0.00609724]
[1734314680741,0.414076,105430.0,105420.0,0.00609724]
[1734314681489,0.414076,105430.0,105420.0,0.13889924]
[1734314681490,0.224377,105430.0,105420.0,0.13889924]
[1734314681986,0.2363949,105430.0,105420.0,0.13889924]
[1734314683001,0.2363949,105430.0,105420.0,0.13997134]
[1734314683002,0.224377,105430.0,105420.0,0.13997134]
[1734314683205,0.224377,105430.0,105420.0,0.13889924]
[1734314686472,0.224377,105430.0,105420.0,0.1329746]
[1734314686681,0.224377,105430.0,105420.0,0.13889867]
[1734314686878,0.224377,105430.0,105420.0,0.2234341]
[1734314687092,0.142677,105430.0,105420.0,0.74751641]
[1734314687871,0.142677,105430.0,105420.0,0.91658727]
[1734314688046,0.142677,105430.0,105420.0,0.74751641]
[1734314688703,0.142677,105430.0,105420.0,0.91658727]
[1734314689523,0.14245884,105430.0,105420.0,0.95866566]
[1734314689725,0.14236399,105430.0,105420.0,1.12817294]
[1734314689941,0.14236399,105430.0,105420.0,1.04339041]
[1734314690535,0.14236399,105430.0,105420.0,1.04379223]
[1734314690941,0.14236399,105430.0,105420.0,0.95906748]
[1734314691491,0.14236399,105430.0,105420.0,0.97164983]
[1734314692599,0.14236399,105430.0,105420.0,0.84444487]
[1734314692805,0.14236399,105430.0,105420.0,0.97172012]
[1734314693579,0.14236399,105430.0,105420.0,0.84509532]
[1734314693991,0.14236399,105430.0,105420.0,1.09970004]
[1734314694998,0.14236399,105430.0,105420.0,1.09972071]
[1734314695267,0.14236399,105430.0,105420.0,0.97239684]
[1734314696219,0.14236399,105430.0,105420.0,0.97406833]
[1734314697666,0.14236399,105430.0,105420.0,0.80430845]
[1734314697862,0.14236399,105430.0,105420.0,0.97418188]
[1734314698413,0.14236399,105430.0,105420.0,0.7917261]
[1734314698620,0.23730039,105430.0,105420.0,0.96160253]
[1734314698845,0.23730039,105430.0,105420.0,1.08906898]
[1734314699500,8.63e-05,105430.0,105420.0,1.13109067]
[1734314699654,8.63e-05,105450.0,105440.0,0.132776]
[1734314699858,0.094377,105450.0,105440.0,0.83426731]
[1734314700112,0.094377,105450.0,105440.0,0.56335868]
[1734314700340,0.094377,105450.0,105440.0,0.87688104]
[1734314700584,0.094377,105450.0,105440.0,0.87690034]
[1734314701251,0.094377,105450.0,105440.0,0.88637666]
[1734314702434,0.094377,105450.0,105440.0,0.71649169]
[1734314702818,0.1164447,105450.0,105440.0,0.84394634]
[1734314703115,0.1164447,105450.0,105440.0,1.05635131]
[1734314703324,0.2450447,105450.0,105440.0,0.31362731]
[1734314703535,0.2450447,105450.0,105410.0,0.132812]
[1734314703645,0.4295228,105390.0,105370.0,0.45752955]
[1734314703877,0.4295228,105390.0,105360.0,0.0050744]
[1734314703878,1.38228539,105380.0,105360.0,0.0050744]
[1734314704053,0.79093735,105370.0,105360.0,0.0001726]
[1734314704256,0.26437509,105370.0,105360.0,0.0001726]
[1734314704455,0.356845,105370.0,105360.0,0.0001726]
[1734314704685,0.12757313,105370.0,105360.0,0.0001726]
[1734314704882,0.38252997,105370.0,105360.0,0.3024991]
[1734314705106,0.12757313,105370.0,105360.0,0.30266799]
[1734314705662,0.42497682,105370.0,105360.0,0.30266799]
[1734314705883,0.25503185,105370.0,105360.0,0.30757274]
[1734314706055,0.25503185,105370.0,105360.0,0.29705117]
[1734314706506,0.33998059,105370.0,105360.0,0.05124829]
[1734314706706,0.33998059,105370.0,105360.0,0.27841599]
[1734314706912,0.33998059,105370.0,105360.0,0.28291961]
[1734314706913,0.21252187,105370.0,105360.0,0.28291961]
[1734314707124,0.12757313,105370.0,105360.0,0.28291961]
[1734314707321,0.0916589,105370.0,105360.0,0.33291961]
[1734314707519,0.0347159,105370.0,105360.0,2.86091961]
[1734314707777,0.38229424,105400.0,105370.0,0.05]
[1734314707999,0.21234927,105400.0,105390.0,0.29176693]
[1734314708153,0.38219362,105400.0,105390.0,0.29176693]
[1734314708353,0.38219362,105400.0,105390.0,0.43605763]
[1734314708556,0.21234927,105400.0,105390.0,0.45015025]
[1734314708959,0.21234927,105400.0,105390.0,0.60907818]
[1734314709174,0.21234927,105400.0,105390.0,0.45015025]
[1734314709408,0.21234927,105400.0,105390.0,0.60907818]
[1734314709758,0.21234927,105400.0,105390.0,0.45015025]
[1734314711384,0.21234927,105400.0,105390.0,0.46948833]
[1734314711585,0.06245087,105400.0,105390.0,5.47240533]
[1734314711850,0.0078724,105400.0,105390.0,5.47240533]
[1734314712159,0.00980086,105420.0,105410.0,0.182814]
[1734314712359,0.00980086,105420.0,105410.0,0.43603263]
[1734314712566,0.00980086,105420.0,105410.0,0.45012525]
[1734314713470,0.00996963,105420.0,105410.0,0.45012525]
[1734314714291,0.00996963,105420.0,105410.0,0.14690662]
[1734314714467,0.00996963,105420.0,105410.0,0.132814]
[1734314715383,0.17972812,105420.0,105410.0,0.132814]
[1734314715906,0.17972812,105420.0,105410.0,0.1518677]
[1734314716685,0.30705248,105420.0,105410.0,0.1518677]
[1734314717204,0.30705913,105420.0,105410.0,0.1518677]
[1734314719570,0.25464815,105440.0,105410.0,0.1518677]
[1734314719735,0.0848554,105470.0,105460.0,0.05]
[1734314719937,8.63e-05,105500.0,105480.0,0.213765]
[1734314720276,0.0157568,105520.0,105510.0,0.05]
[1734314720277,0.01100462,105520.0,105510.0,0.05]
[1734314720480,0.01100462,105520.0,105510.0,0.1]
[1734314720682,0.04419095,105530.0,105510.0,0.213726]
[1734314720889,0.13848165,105530.0,105510.0,0.05]
[1734314721026,0.09485415,105520.0,105500.0,0.05]
[1734314721228,0.00056345,105520.0,105510.0,0.05]
[1734314721668,0.00056345,105520.0,105490.0,0.1]
[1734314721669,0.09485415,105520.0,105490.0,0.1]
[1734314721862,0.0942907,105510.0,105490.0,0.05]
[1734314722065,0.1738907,105510.0,105470.0,0.05]
[1734314722268,0.379168,105500.0,105460.0,0.163787]
[1734314722469,0.2838817,105490.0,105450.0,0.277587]
[1734314722862,0.18961,105480.0,105450.0,0.1]
[1734314723073,0.0942907,105470.0,105450.0,0.1]
[1734314723221,0.2839187,105470.0,105450.0,0.1]
[1734314723420,0.35023347,105470.0,105450.0,0.1]
[1734314723623,0.0942907,105470.0,105450.0,0.1]
[1734314723998,0.0942907,105470.0,105450.0,0.05]
[1734314724232,0.0948538,105470.0,105450.0,0.1]
[1734314726024,0.0005631,105470.0,105460.0,0.1]
[1734314726179,0.0005631,105470.0,105460.0,0.213787]
[1734314729275,0.0005631,105470.0,105450.0,0.21831322]
[1734314729457,0.0005631,105470.0,105460.0,0.113787]
[1734314730252,0.0005631,105470.0,105460.0,0.151672]
[1734314731300,0.0005631,105470.0,105460.0,0.170636]
[1734314731732,0.0948538,105470.0,105440.0,0.13308539]
[1734314731871,0.12655106,105470.0,105440.0,0.113801]
[1734314732105,0.12655106,105470.0,105430.0,0.46237793]
[1734314732106,0.0942907,105460.0,105430.0,0.46237793]
[1734314732340,0.0032574,105450.0,105430.0,0.55726893]
[1734314732787,0.0032574,105450.0,105440.0,0.132776]
[1734314735728,0.0032574,105450.0,105430.0,0.4431538]
[1734314736343,0.0032574,105450.0,105430.0,0.5759358]
[1734314736627,0.0032574,105450.0,105440.0,0.132776]
[1734314738125,0.0032574,105450.0,105430.0,0.16314159]
[1734314738701,0.2872131,105450.0,105420.0,0.14263544]
[1734314738904,0.52457241,105450.0,105420.0,0.27543744]
[1734314739111,0.33489941,105450.0,105420.0,0.27543744]
[1734314739335,0.2872131,105450.0,105420.0,0.40823144]
[1734314739580,0.2872131,105450.0,105430.0,0.132788]
[1734314739938,0.2872131,105450.0,105430.0,0.09847955]
[1734314740250,0.2872131,105450.0,105430.0,0.132788]
[1734314740775,0.0942907,105440.0,105420.0,0.15146113]
[1734314740983,0.00323628,105430.0,105410.0,0.29173293]
[1734314741188,0.00323628,105430.0,105410.0,0.42454093]
[1734314741388,0.00323628,105430.0,105410.0,0.55734793]
[1734314741590,0.00323628,105430.0,105420.0,0.132802]
[1734314744174,0.00332258,105430.0,105420.0,0.132802]
[1734314745278,0.00332258,105430.0,105420.0,0.131802]
[1734314747807,0.00332258,105430.0,105420.0,0.14172819]
[1734314748798,0.14551328,105430.0,105400.0,0.0001726]
[1734314748916,0.189735,105410.0,105400.0,0.0001726]
[1734314749117,0.3669257,105410.0,105400.0,0.00034137]
[1734314749322,0.4201495,105410.0,105400.0,0.00034137]
[1734314749632,0.50468624,105410.0,105400.0,0.00034137]
[1734314749833,0.63149135,105410.0,105400.0,0.00034137]
[1734314750066,0.72566661,105410.0,105400.0,0.00034137]
[1734314750491,0.81020336,105410.0,105400.0,0.00034137]
[1734314750772,0.80057621,105410.0,105400.0,0.00034137]
[1734314750968,0.63150272,105410.0,105400.0,0.00034137]
[1734314752284,0.80057621,105410.0,105400.0,0.00034137]
[1734314752524,0.80056774,105410.0,105400.0,0.00034137]
[1734314753328,0.7160476,105410.0,105400.0,0.00034137]
[1734314753547,0.89476518,105410.0,105400.0,0.00034137]
[1734314753740,1.02155681,105410.0,105400.0,0.00034137]
[1734314753965,1.02156153,105410.0,105400.0,0.00034137]
[1734314754185,0.189774,105390.0,105370.0,0.113883]
[1734314754476,0.00320206,105380.0,105370.0,0.11684643]
[1734314755718,0.00320206,105380.0,105370.0,0.11684743]
[1734314755923,0.09749276,105380.0,105370.0,0.00296343]
[1734314756126,0.32543751,105380.0,105370.0,0.00296343]
[1734314756360,0.32543751,105380.0,105360.0,0.02155166]
[1734314756563,0.0942907,105370.0,105360.0,0.02155166]
[1734314756764,0.2840977,105370.0,105360.0,0.00304973]
[1734314757209,0.28729888,105370.0,105360.0,0.00304973]
[1734314757413,0.37905655,105370.0,105360.0,0.00304973]
[1734314757617,0.37905655,105370.0,105360.0,8.63e-05]
[1734314757823,0.37922519,105370.0,105360.0,8.63e-05]
[1734314758049,0.47442519,105370.0,105360.0,8.63e-05]
[1734314758256,0.68550032,105370.0,105360.0,8.63e-05]
[1734314758454,0.79440032,105370.0,105360.0,8.63e-05]
[1734314758665,0.74440032,105370.0,105360.0,8.63e-05]
[1734314759276,0.91326043,105370.0,105360.0,8.63e-05]
[1734314759480,0.74440032,105370.0,105360.0,8.63e-05]
[1734314759661,0.416378,105350.0,105330.0,0.0001728]
[1734314759921,0.2175907,105340.0,105330.0,0.0001728]
[1734314760128,0.14265601,105340.0,105330.0,0.0001728]
[1734314760342,0.14265601,105340.0,105330.0,0.00313766]
[1734314760343,0.09745601,105340.0,105330.0,0.00313766]
[1734314760559,0.28731701,105340.0,105330.0,0.00313766]
[1734314762175,0.33731701,105340.0,105330.0,0.00313766]
[1734314762380,0.41955403,105340.0,105290.0,0.07961891]
[1734314762590,0.189879,105330.0,105280.0,0.34937773]
[1734314762805,0.2841987,105320.0,105290.0,0.113962]
[1734314763019,0.47725999,105320.0,105290.0,0.2470926]
[1734314763235,0.14743799,105320.0,105290.0,0.0191686]
[1734314763457,0.189946,105300.0,105280.0,0.0001728]
[1734314763661,0.2842417,105290.0,105280.0,0.0001728]
[1734314763797,0.2842417,105290.0,105280.0,0.00073538]
[1734314764003,0.28738009,105290.0,105280.0,0.00073538]
[1734314765518,0.17702909,105290.0,105280.0,0.00073538]
[1734314765813,0.09742909,105290.0,105280.0,0.00073538]
[1734314766458,0.3397123,105290.0,105280.0,0.00073538]
[1734314767597,0.4986123,105290.0,105280.0,0.00073538]
[1734314767995,0.4654123,105290.0,105280.0,0.00073538]
[1734314768333,0.5154123,105290.0,105280.0,0.00073538]
[1734314768829,0.4654123,105290.0,105280.0,0.00073538]
[1734314769055,0.05,105280.0,105270.0,0.02100017]
[1734314769303,0.38580093,105280.0,105270.0,0.02116881]
[1734314769780,0.38877351,105280.0,105270.0,0.02116881]
[1734314770010,0.33723228,105280.0,105270.0,0.02116881]
[1734314770474,0.28723228,105280.0,105270.0,0.02116881]
[1734314770959,0.33723228,105280.0,105270.0,0.02116881]
[1734314771905,0.28723228,105280.0,105270.0,0.02116881]
[1734314775146,0.33723228,105280.0,105270.0,0.02413544]
[1734314775384,0.43140754,105280.0,105270.0,0.02413544]
[1734314775818,0.43140754,105280.0,105270.0,0.02116881]
[1734314776752,0.28723228,105280.0,105270.0,0.02116881]
[1734314776953,0.28723228,105280.0,105270.0,0.02413569]
[1734314777237,0.33723228,105280.0,105270.0,0.02413569]
[1734314777644,0.49283228,105280.0,105270.0,0.02413569]
[1734314777907,0.49283228,105280.0,105270.0,0.02116881]
[1734314778103,0.239987,105270.0,105260.0,0.0093157]
[1734314778292,0.3931777,105270.0,105260.0,0.00937207]
[1734314778473,0.44613275,105270.0,105260.0,0.01233922]
[1734314778836,0.52733275,105270.0,105260.0,0.00937207]
[1734314779206,0.52733275,105270.0,105260.0,0.01233941]
[1734314779537,0.62150801,105270.0,105260.0,0.00937207]
[1734314780496,0.67150801,105270.0,105260.0,0.00937207]
[1734314780696,0.67150801,105270.0,105260.0,0.01233939]
[1734314780697,0.52733275,105270.0,105260.0,0.01233939]
[1734314781678,0.53718842,105270.0,105260.0,0.01233939]
[1734314781884,0.58718842,105270.0,105260.0,0.01233939]
[1734314782759,0.53718842,105270.0,105260.0,0.01233939]
[1734314783373,0.58718842,105270.0,105260.0,0.01233939]
[1734314783680,0.68136368,105270.0,105260.0,0.01233939]
[1734314784104,0.68136368,105270.0,105260.0,0.01233925]
[1734314785023,0.63136368,105270.0,105260.0,0.01233925]
[1734314785230,0.68136368,105270.0,105260.0,0.01233925]
[1734314785793,0.58718842,105270.0,105260.0,0.01233925]
[1734314786175,0.190023,105250.0,105240.0,0.0001728]
[1734314786361,0.2843137,105250.0,105240.0,0.0001728]
[1734314786570,0.287267,105250.0,105240.0,0.0049208]
[1734314786780,0.287267,105250.0,105240.0,0.0001728]
[1734314786991,0.4065977,105250.0,105240.0,0.0001728]
[1734314788670,0.334867,105250.0,105240.0,0.0001728]
[1734314790014,0.287267,105250.0,105240.0,0.0001728]
[1734314791888,0.097244,105250.0,105240.0,0.1141978]
[1734314792897,0.287267,105250.0,105240.0,0.0001728]
[1734314795601,0.097244,105250.0,105230.0,0.11403]
[1734314795803,0.0942907,105240.0,105230.0,0.11403]
[1734314796137,0.09723629,105240.0,105230.0,0.11403]
[1734314798460,0.10695992,105240.0,105220.0,0.3094486]
[1734314798670,0.29700192,105240.0,105220.0,0.3094486]
[1734314799791,0.29700192,105240.0,105220.0,0.3094516]
[1734314800205,0.29700192,105240.0,105220.0,0.1142106]
[1734314800425,0.48705292,105240.0,105220.0,0.1142106]
[1734314801198,0.2843497,105230.0,105220.0,0.0001726]
[1734314801376,0.37852496,105230.0,105220.0,0.0001726]
[1734314801603,0.49036204,105230.0,105220.0,0.0001726]
[1734314802018,0.38146204,105230.0,105220.0,0.0001726]
[1734314802222,0.38046204,105230.0,105220.0,0.0001726]
[1734314802422,0.59988284,105230.0,105220.0,0.00073629]
[1734314802655,0.64828284,105230.0,105220.0,0.00073629]
[1734314803278,0.339917,105220.0,105210.0,0.0002326]
[1734314803481,0.52838296,105220.0,105210.0,0.0002326]
[1734314803659,0.42854296,105220.0,105210.0,0.0002326]
[1734314803970,0.33730391,105220.0,105210.0,0.0002326]
[1734314804378,0.28730391,105220.0,105210.0,0.0002326]
[1734314804588,0.33730391,105220.0,105210.0,0.0002326]
[1734314807444,0.09722691,105220.0,105210.0,0.0002326]
[1734314807655,0.17738006,105220.0,105210.0,0.0002326]
[1734314808062,0.36745706,105220.0,105210.0,0.0002326]
[1734314808757,0.28730391,105220.0,105210.0,0.0002326]
[1734314808962,0.09722691,105220.0,105210.0,0.0002326]
[1734314809370,0.09722691,105220.0,105210.0,0.1142896]
[1734314812562,0.09722691,105220.0,105210.0,0.35061753]
[1734314812563,0.00310901,105220.0,105210.0,0.35061753]
[1734314813966,0.09739971,105220.0,105210.0,0.1916896]
[1734314815879,0.14520888,105220.0,105210.0,0.0002326]
[1734314816107,0.33528588,105220.0,105210.0,0.0002326]
[1734314817611,0.33428588,105220.0,105210.0,0.0002326]
[1734314817815,0.33543661,105220.0,105210.0,0.0002326]
[1734314819530,0.28762744,105220.0,105210.0,0.0002326]
[1734314819942,0.28762744,105220.0,105210.0,0.1142896]
[1734314819943,0.09755044,105220.0,105210.0,0.1142896]
[1734314820186,0.05,105200.0,105180.0,0.40137134]
[1734314820388,0.2844327,105190.0,105170.0,0.21259653]
[1734314820613,0.0942907,105190.0,105170.0,0.38720023]
[1734314820818,0.00285492,105180.0,105170.0,0.27310623]
[1734314821271,0.00285492,105180.0,105170.0,0.35811032]
[1734314821504,0.00285492,105180.0,105170.0,0.48561646]
[1734314821709,0.00285492,105180.0,105170.0,0.43411032]
[1734314822121,0.190105,105210.0,105190.0,0.228153]
[1734314822332,0.0942907,105200.0,105190.0,0.228153]
[1734314823131,0.0932907,105200.0,105190.0,0.228153]
[1734314825427,0.09614571,105200.0,105190.0,0.228153]
[1734314827182,0.09614571,105200.0,105190.0,0.114074]
[1734314828255,0.09614571,105200.0,105180.0,0.228164]
[1734314828465,0.33389528,105200.0,105180.0,0.228164]
[1734314828671,0.52402528,105200.0,105170.0,0.40428905]
[1734314828869,0.190141,105190.0,105170.0,0.12918996]
[1734314829025,0.0942907,105180.0,105170.0,0.12918996]
[1734314829225,0.09714199,105180.0,105170.0,0.01509596]
[1734314829458,0.29891523,105180.0,105170.0,0.00025551]
[1734314830459,0.28729199,105180.0,105170.0,0.00025551]
[1734314833153,0.28629199,105180.0,105170.0,0.00025551]
[1734314834794,0.09614199,105180.0,105170.0,0.00025551]
[1734314835049,0.09614199,105180.0,105170.0,0.19944468]
[1734314835256,0.09614199,105180.0,105170.0,0.11435551]
[1734314836653,0.09614199,105180.0,105170.0,0.19944468]
[1734314836872,0.09614199,105180.0,105170.0,0.11435551]
[1734314837058,0.09614199,105180.0,105170.0,0.19944468]
[1734314837501,0.09614199,105180.0,105170.0,0.11435551]
[1734314837841,0.09614199,105180.0,105170.0,0.19944468]
[1734314838884,0.00285129,105180.0,105170.0,0.27944468]
[1734314839113,0.190115,105200.0,105170.0,0.27944468]
[1734314839330,0.09712163,105190.0,105180.0,0.228172]
[1734314841764,0.09712163,105190.0,105180.0,0.114088]
[1734314842131,0.09712163,105190.0,105180.0,0.228176]
[1734314842751,0.09712163,105190.0,105180.0,0.114088]
[1734314844367,0.09712163,105190.0,105180.0,0.19917717]
[1734314844809,0.09612163,105190.0,105180.0,0.19917717]
[1734314846050,0.09629443,105190.0,105180.0,0.19917717]
[1734314847326,0.10592387,105190.0,105170.0,0.19928069]
[1734314847528,0.29606487,105190.0,105170.0,0.11434851]
[1734314847730,0.48620887,105190.0,105170.0,0.11434851]
[1734314848365,0.1702907,105180.0,105170.0,0.00025551]
[1734314848557,0.43449854,105180.0,105170.0,0.00025551]
[1734314849924,0.36228765,105180.0,105170.0,0.00025551]